bitfinex-derivatives/quotes_BTCF0:USTF0_20240902
["timestamp","ask_amount","ask_price","bid_price","bid_amount"]
[1725300798043,0.01325574,58665.0,58664.0,0.447426]
[1725300798533,0.01325574,58665.0,58664.0,0.3622]
[1725300798534,0.09548074,58665.0,58664.0,0.3622]
[1725300798734,0.09848074,58665.0,58664.0,0.3622]
[1725300799233,0.09048074,58665.0,58664.0,0.3612]
[1725300799927,0.09348074,58665.0,58664.0,0.3612]
[1725300800736,0.09548074,58665.0,58664.0,0.3622]
[1725300801334,0.09548074,58665.0,58664.0,0.3632]
[1725300801537,0.09548074,58665.0,58664.0,0.448426]
[1725300801837,0.01025574,58665.0,58664.0,1.895052]
[1725300802042,0.004,58678.0,58677.0,0.085208]
[1725300802235,0.3608,58679.0,58678.0,0.085206]
[1725300802538,0.3608,58679.0,58678.0,0.085606]
[1725300802736,0.3608,58679.0,58678.0,0.085206]
[1725300803036,0.446005,58679.0,58678.0,0.085206]
[1725300803735,0.460005,58679.0,58678.0,0.085206]
[1725300804134,0.3748,58679.0,58678.0,0.085206]
[1725300804334,0.085206,58678.0,58677.0,0.0004]
[1725300804532,0.085606,58678.0,58677.0,0.0004]
[1725300805231,0.085606,58678.0,58677.0,0.085608]
[1725300805232,0.0004,58678.0,58677.0,0.085608]
[1725300805836,0.0004,58678.0,58677.0,0.086608]
[1725300806231,0.085606,58678.0,58677.0,0.0014]
[1725300806430,0.170812,58678.0,58677.0,0.0014]
[1725300806825,0.171812,58678.0,58677.0,0.0014]
[1725300807229,0.086606,58678.0,58677.0,0.0014]
[1725300807632,0.086606,58678.0,58677.0,0.0024]
[1725300807633,0.093606,58678.0,58677.0,0.0024]
[1725300807835,0.178812,58678.0,58677.0,0.0024]
[1725300808143,0.178812,58678.0,58677.0,0.0014]
[1725300808437,1.048812,58678.0,58677.0,0.0014]
[1725300808840,1.048812,58678.0,58677.0,0.0024]
[1725300809241,1.409612,58678.0,58677.0,0.0024]
[1725300809440,2.520892,58678.0,58677.0,0.0024]
[1725300809627,2.520892,58678.0,58677.0,0.0014]
[1725300809828,2.520892,58678.0,58677.0,0.0024]
[1725300809829,2.605098,58678.0,58677.0,0.0024]
[1725300810138,0.255636,58674.0,58673.0,0.00025574]
[1725300810328,0.255636,58674.0,58663.0,0.3648]
[1725300810329,0.085226,58664.0,58663.0,0.3648]
[1725300810535,0.335626,58664.0,58663.0,0.3608]
[1725300810735,1.205226,58664.0,58663.0,0.3608]
[1725300811032,0.335226,58664.0,58663.0,0.3608]
[1725300811232,0.420452,58664.0,58663.0,0.3608]
[1725300811540,0.420452,58664.0,58658.0,0.00025574]
[1725300811541,0.085234,58659.0,58658.0,0.00025574]
[1725300811852,0.335634,58659.0,58658.0,0.00025574]
[1725300812646,0.696434,58659.0,58658.0,0.00025574]
[1725300813031,0.696434,58659.0,58658.0,0.00225574]
[1725300814531,0.781668,58659.0,58658.0,0.00225574]
[1725300814730,0.696434,58659.0,58658.0,0.00225574]
[1725300815138,0.495734,58659.0,58658.0,0.00225574]
[1725300815336,0.745734,58659.0,58658.0,0.00225574]
[1725300816062,0.794234,58659.0,58658.0,0.00225574]
[1725300818038,0.879468,58659.0,58658.0,0.00225574]
[1725300818448,0.794234,58659.0,58658.0,0.00225574]
[1725300818745,0.879468,58659.0,58658.0,0.00225574]
[1725300820438,0.964702,58659.0,58658.0,0.00225574]
[1725300820640,0.085248,58649.0,58648.0,0.004]
[1725300820849,0.085248,58649.0,58645.0,0.13609415]
[1725300820850,0.085253,58646.0,58645.0,0.13609415]
[1725300821044,0.085653,58646.0,58645.0,0.13609415]
[1725300821236,0.085253,58646.0,58645.0,0.13609415]
[1725300821437,0.085253,58646.0,58645.0,0.085254]
[1725300822433,0.072253,58646.0,58645.0,0.085254]
[1725300822843,0.060253,58646.0,58645.0,0.085254]
[1725300823248,0.061253,58646.0,58645.0,0.099254]
[1725300823446,0.061253,58646.0,58645.0,0.113254]
[1725300823846,0.061253,58646.0,58645.0,0.028]
[1725300824943,0.061253,58646.0,58645.0,0.113254]
[1725300829242,0.001,58646.0,58645.0,0.113254]
[1725300829446,0.001,58646.0,58645.0,0.283762]
[1725300829946,0.001,58646.0,58645.0,0.198508]
[1725300832247,0.001,58646.0,58645.0,0.24904218]
[1725300832452,0.001,58646.0,58645.0,0.113254]
[1725300832653,0.086253,58646.0,58645.0,0.113254]
[1725300833145,0.001,58646.0,58645.0,0.113254]
[1725300833655,0.001,58646.0,58645.0,0.16380609]
[1725300833844,0.001,58646.0,58645.0,0.24906009]
[1725300834043,0.001,58646.0,58645.0,0.16380609]
[1725300834253,0.001,58646.0,58645.0,0.198508]
[1725300834646,0.001,58646.0,58645.0,0.24910343]
[1725300834844,0.001,58646.0,58645.0,0.198508]
[1725300835361,0.001,58646.0,58645.0,0.24910158]
[1725300835556,0.001,58646.0,58645.0,0.198508]
[1725300837153,0.001,58646.0,58645.0,0.559308]
[1725300837553,0.001,58646.0,58645.0,0.474054]
[1725300839955,0.001,58646.0,58645.0,0.113254]
[1725300840465,0.086253,58646.0,58645.0,0.113254]
[1725300841760,0.001,58646.0,58645.0,0.113254]
[1725300843558,0.086253,58646.0,58645.0,0.028]
[1725300850254,0.171506,58646.0,58645.0,0.07878631]
[1725300850458,0.171506,58646.0,58645.0,0.028]
[1725300851160,1.04510953,58646.0,58645.0,0.028]
[1725300851362,1.13036253,58646.0,58645.0,0.028]
[1725300851571,1.13036253,58646.0,58645.0,0.016]
[1725300851862,1.73036253,58646.0,58645.0,0.016]
[1725300852056,2.24192253,58646.0,58645.0,0.016]
[1725300852250,2.24092253,58646.0,58645.0,0.005]
[1725300852859,0.25578,58641.0,58640.0,0.00025574]
[1725300853066,0.45618,58641.0,58640.0,0.00025574]
[1725300853271,0.45518,58641.0,58640.0,0.00025574]
[1725300854365,0.46018,58641.0,58640.0,0.00025574]
[1725300855870,0.37892,58641.0,58640.0,0.00025574]
[1725300858667,0.29366,58641.0,58640.0,0.00025574]
[1725300859084,0.37892,58641.0,58640.0,0.00025574]
[1725300859370,0.29366,58641.0,58640.0,0.00025574]
[1725300859770,0.65446,58641.0,58640.0,0.00025574]
[1725300861976,0.0094,58641.0,58640.0,0.08551674]
[1725300862159,0.0094,58641.0,58640.0,1.24611674]
[1725300863168,0.0054,58641.0,58640.0,1.24611674]
[1725300863370,0.0074,58641.0,58640.0,1.24611674]
[1725300863969,0.0034,58641.0,58640.0,1.24611674]
[1725300864272,0.0034,58641.0,58640.0,1.24961806]
[1725300864471,0.0034,58641.0,58640.0,1.30040437]
[1725300865057,0.0014,58641.0,58640.0,1.30040437]
[1725300865560,0.0004,58641.0,58640.0,1.30231566]
[1725300865973,0.0004,58641.0,58640.0,0.14201806]
[1725300866670,0.0004,58641.0,58640.0,0.09301806]
[1725300867870,0.08566,58641.0,58640.0,0.08951674]
[1725300870367,0.08566,58641.0,58640.0,0.08751674]
[1725300870563,0.09066,58641.0,58640.0,0.00225574]
[1725300870759,0.17592,58641.0,58640.0,0.00225574]
[1725300871364,1.40672,58641.0,58640.0,0.00225574]
[1725300871973,0.085271,58633.0,58632.0,0.3608]
[1725300872164,0.285671,58633.0,58632.0,0.3608]
[1725300873173,0.286671,58633.0,58632.0,0.3668]
[1725300875872,0.286671,58633.0,58632.0,0.006]
[1725300877269,0.371942,58633.0,58632.0,0.006]
[1725300879067,0.732742,58633.0,58632.0,0.006]
[1725300879469,0.732742,58633.0,58614.0,0.3608]
[1725300879470,0.51168,58632.0,58614.0,0.3608]
[1725300879674,0.5612,58623.0,58617.0,0.004]
[1725300879866,0.196,58615.0,58609.0,0.085305]
[1725300880075,0.2004,58610.0,58609.0,0.085305]
[1725300880270,0.2,58610.0,58609.0,0.085305]
[1725300881571,0.194,58610.0,58609.0,0.085305]
[1725300882175,0.195,58610.0,58609.0,0.092305]
[1725300882372,0.196,58610.0,58609.0,0.092305]
[1725300883873,0.002,58610.0,58609.0,0.092305]
[1725300884469,0.202,58610.0,58609.0,0.092305]
[1725300884680,0.287305,58610.0,58609.0,0.092305]
[1725300885580,0.287305,58610.0,58609.0,0.453105]
[1725300888483,0.002,58610.0,58609.0,0.453105]
[1725300889884,0.002,58610.0,58609.0,1.564985]
[1725300890783,0.002,58610.0,58609.0,1.650291]
[1725300890982,0.00025574,58615.0,58614.0,0.170598]
[1725300890983,7.4e-07,58615.0,58614.0,0.170598]
[1725300891185,7.4e-07,58615.0,58614.0,1.243598]
[1725300891386,7.4e-07,58615.0,58614.0,1.843598]
[1725300891687,7.4e-07,58615.0,58614.0,1.928897]
[1725300891991,7.4e-07,58615.0,58614.0,1.843598]
[1725300892197,7.4e-07,58615.0,58614.0,1.978597]
[1725300892390,7.4e-07,58615.0,58614.0,1.979597]
[1725300892989,7.4e-07,58615.0,58614.0,1.98321868]
[1725300893184,7.4e-07,58615.0,58614.0,2.05100505]
[1725300893484,0.2,58632.0,58622.0,0.170574]
[1725300893688,0.285267,58636.0,58622.0,0.731774]
[1725300893991,0.2,58636.0,58622.0,1.843534]
[1725300894397,0.00025574,58628.0,58622.0,1.843534]
[1725300894579,0.00025574,58628.0,58622.0,1.89419277]
[1725300895289,0.00025574,58628.0,58622.0,1.848534]
[1725300896600,0.00025574,58628.0,58622.0,0.963247]
[1725300896779,0.20025574,58628.0,58622.0,0.963247]
[1725300896984,0.20025574,58628.0,58622.0,1.563247]
[1725300897179,0.20025574,58628.0,58622.0,0.963247]
[1725300897488,0.20025574,58628.0,58622.0,0.50219954]
[1725300897489,0.2,58624.0,58622.0,0.50219954]
[1725300897680,0.2,58624.0,58622.0,0.451487]
[1725300898078,0.0456,58627.0,58622.0,0.453487]
[1725300898276,0.0456,58627.0,58622.0,0.50419954]
[1725300898686,0.0456,58627.0,58622.0,0.14339954]
[1725300898890,0.0456,58627.0,58622.0,0.453487]
[1725300899083,0.2004,58623.0,58622.0,0.453487]
[1725300899483,0.0004,58623.0,58622.0,0.453487]
[1725300899679,0.0004,58623.0,58622.0,0.45708237]
[1725300902288,0.0004,58623.0,58622.0,0.54236937]
[1725300903289,0.0004,58623.0,58622.0,0.62765637]
[1725300903597,0.0004,58623.0,58622.0,1.73941637]
[1725300904888,0.0004,58623.0,58622.0,0.54236937]
[1725300905194,0.0004,58623.0,58622.0,0.45708237]
[1725300905491,0.285686,58623.0,58622.0,0.3682]
[1725300906081,1.155686,58623.0,58622.0,0.3682]
[1725300906485,1.155686,58623.0,58622.0,0.3662]
[1725300906780,1.160686,58623.0,58622.0,0.3662]
[1725300907296,1.160686,58623.0,58622.0,0.3672]
[1725300907882,1.160686,58623.0,58622.0,0.0064]
[1725300908189,1.160686,58623.0,58622.0,0.0014]
[1725300908190,1.163686,58623.0,58622.0,0.0014]
[1725300908893,1.160686,58623.0,58622.0,0.0014]
[1725300909090,1.167686,58623.0,58622.0,0.0024]
[1725300913192,1.252972,58623.0,58622.0,0.0024]
[1725300913492,1.252972,58623.0,58598.0,0.08887904]
[1725300913493,0.085317,58602.0,58600.0,0.085319]
[1725300913694,0.2004,58601.0,58600.0,0.08884885]
[1725300914399,0.2004,58601.0,58599.0,0.3608]
[1725300914588,0.085719,58600.0,58599.0,0.3608]
[1725300914791,0.071719,58600.0,58599.0,0.3608]
[1725300915388,0.057719,58600.0,58599.0,0.3608]
[1725300915693,0.043719,58600.0,58599.0,0.3608]
[1725300915893,0.043719,58600.0,58599.0,0.3638]
[1725300916586,0.089819,58600.0,58599.0,0.3638]
[1725300923191,0.089819,58600.0,58599.0,0.449121]
[1725300923405,0.0004,58600.0,58599.0,0.449121]
[1725300923898,0.0004,58600.0,58599.0,0.534442]
[1725300924205,0.0004,58600.0,58599.0,1.931723]
[1725300924797,0.0004,58600.0,58599.0,1.99926802]
[1725300925302,0.0004,58600.0,58599.0,1.931723]
[1725300926607,0.0004,58600.0,58599.0,1.846402]
[1725300926899,0.0004,58600.0,58599.0,1.246402]
[1725300927298,0.0004,58600.0,58599.0,1.96214339]
[1725300927498,0.0004,58600.0,58599.0,1.96215241]
[1725300927901,0.0004,58600.0,58599.0,1.894502]
[1725300928107,0.0004,58600.0,58599.0,1.96214443]
[1725300928406,0.0004,58600.0,58599.0,1.894502]
[1725300928608,0.0004,58600.0,58599.0,1.96215642]
[1725300929114,0.0004,58600.0,58599.0,1.894502]
[1725300930007,0.0004,58600.0,58599.0,1.979823]
[1725300930592,0.00025597,58606.0,58605.0,0.455936]
[1725300930799,0.00025597,58606.0,58605.0,0.817136]
[1725300931091,0.00025597,58606.0,58605.0,1.929016]
[1725300932201,0.00525597,58606.0,58605.0,1.929016]
[1725300932604,0.01025597,58606.0,58605.0,1.929016]
[1725300935806,0.01025597,58606.0,58605.0,1.93256551]
[1725300936199,9.7e-07,58606.0,58605.0,1.93256551]
[1725300936497,9.7e-07,58606.0,58605.0,2.01787751]
[1725300938312,9.4e-07,58611.0,58610.0,0.255915]
[1725300938505,0.0451,58629.0,58628.0,0.085279]
[1725300938715,0.0451,58629.0,58628.0,0.085679]
[1725300939005,0.2901,58630.0,58629.0,0.085277]
[1725300939199,0.2901,58630.0,58629.0,0.085677]
[1725300940413,0.0901,58630.0,58629.0,0.085677]
[1725300940599,0.95552597,58635.0,58634.0,0.17054]
[1725300940600,0.00025597,58635.0,58634.0,0.17054]
[1725300940910,0.2,58649.0,58634.0,1.67284]
[1725300941111,0.0485,58646.0,58645.0,0.446054]
[1725300941906,0.0485,58646.0,58645.0,0.085254]
[1725300942305,0.0625,58646.0,58645.0,0.085254]
[1725300944121,0.0765,58646.0,58645.0,0.085254]
[1725300944304,0.161754,58646.0,58640.0,0.44631597]
[1725300944503,0.0004,58641.0,58640.0,0.44631697]
[1725300945309,0.0004,58641.0,58640.0,0.44985025]
[1725300945511,0.0004,58641.0,58640.0,0.45085025]
[1725300946116,0.0144,58641.0,58640.0,0.45085025]
[1725300947520,0.0284,58641.0,58640.0,0.45085025]
[1725300948514,0.0284,58641.0,58640.0,0.53611125]
[1725300950214,0.0284,58641.0,58640.0,0.45085025]
[1725300952922,0.0284,58641.0,58640.0,0.73611125]
[1725300958810,0.0284,58641.0,58640.0,0.37531125]
[1725300959023,0.0284,58641.0,58640.0,0.73611125]
[1725300960428,0.0284,58641.0,58640.0,0.45085025]
[1725300960621,0.11366,58641.0,58640.0,0.44731697]
[1725300960921,0.0284,58641.0,58640.0,0.44731697]
[1725300962322,0.11366,58641.0,58640.0,0.36205597]
[1725300963517,0.11366,58641.0,58640.0,0.00125597]
[1725300966123,0.0284,58641.0,58640.0,0.28651697]
[1725300966515,0.0284,58641.0,58640.0,0.08651697]
[1725300967228,0.0284,58641.0,58640.0,0.37177797]
[1725300968636,0.0284,58641.0,58640.0,0.28651697]
[1725300972328,0.0284,58641.0,58640.0,0.08651697]
[1725300975522,0.31366,58641.0,58640.0,0.00125597]
[1725300975731,0.39892,58641.0,58640.0,0.00125597]
[1725300976128,1.26892,58641.0,58640.0,0.00125597]
[1725300976934,1.35418,58641.0,58640.0,0.00125597]
[1725300977535,0.170538,58635.0,58626.0,0.3608]
[1725300977937,0.682578,58635.0,58626.0,0.3608]
[1725300978138,1.377178,58635.0,58626.0,0.3608]
[1725300978637,1.377178,58635.0,58629.0,0.00025597]
[1725300978840,0.17056,58627.0,58624.0,0.004]
[1725300979047,0.17056,58627.0,58613.0,0.3608]
[1725300979048,0.085293,58618.0,58615.0,0.004]
[1725300979232,0.085293,58618.0,58613.0,0.3608]
[1725300979233,0.285693,58618.0,58613.0,0.3608]
[1725300979440,0.285293,58618.0,58613.0,0.3608]
[1725300979741,1.155293,58618.0,58613.0,0.3608]
[1725300979944,0.285293,58618.0,58613.0,0.3608]
[1725300980637,0.085299,58614.0,58613.0,0.3608]
[1725300980839,0.085699,58614.0,58613.0,0.3608]
[1725300984736,0.285699,58614.0,58613.0,0.3608]
[1725300985543,0.797539,58614.0,58613.0,0.3608]
[1725300986636,0.285699,58614.0,58613.0,0.3608]
[1725300987848,0.0004,58614.0,58613.0,0.446101]
[1725300988838,0.0004,58614.0,58613.0,0.3608]
[1725300989046,0.2004,58614.0,58613.0,0.3608]
[1725300989448,0.285699,58614.0,58613.0,0.3608]
[1725300991252,0.085301,58613.0,58612.0,0.00025597]
[1725300991442,0.170602,58613.0,58612.0,0.00025597]
[1725300991648,0.171002,58613.0,58612.0,0.00025597]
[1725300991969,0.171002,58613.0,58605.0,0.3608]
[1725300991970,0.085308,58608.0,58605.0,0.3608]
[1725300992159,0.285711,58606.0,58605.0,0.3608]
[1725300992745,0.377611,58606.0,58605.0,0.3608]
[1725300993151,2.244802,58606.0,58600.0,0.00025597]
[1725300993350,0.2004,58601.0,58600.0,0.00025597]
[1725300993747,0.1964,58601.0,58600.0,0.00025597]
[1725300993949,0.0004,58601.0,58600.0,0.00025597]
[1725300994168,0.2004,58601.0,58600.0,0.00025597]
[1725300994451,0.2004,58601.0,58600.0,0.00125597]
[1725300995149,1.0704,58601.0,58600.0,0.00125597]
[1725300996055,1.0704,58601.0,58600.0,0.00025597]
[1725300997754,0.0004,58601.0,58600.0,0.08557497]
[1725300997947,0.00025597,58609.0,58607.0,0.085309]
[1725300998149,0.00025597,58609.0,58604.0,0.085313]
[1725300998150,0.87,58608.0,58604.0,0.085313]
[1725300998447,0.87,58608.0,58600.0,0.04695597]
[1725300998662,0.2,58606.0,58600.0,0.04695597]
[1725300998855,0.955308,58608.0,58603.0,0.085314]
[1725300999044,0.0969,58605.0,58603.0,0.085314]
[1725300999252,0.0468,58604.0,58603.0,0.085314]
[1725300999453,0.2468,58604.0,58603.0,0.085314]
[1725301000751,0.2498,58604.0,58603.0,0.085314]
[1725301001749,0.2518,58604.0,58603.0,0.085314]
[1725301002558,0.205,58604.0,58603.0,0.085314]
[1725301002865,0.252,58604.0,58603.0,0.085314]
[1725301007964,0.337314,58604.0,58603.0,0.085314]
[1725301009176,0.337314,58604.0,58600.0,0.08557497]
[1725301009177,0.085318,58601.0,58600.0,0.08557497]
[1725301010169,0.332314,58604.0,58602.0,0.085316]
[1725301010367,0.085315,58603.0,58602.0,0.085316]
[1725301010866,0.085318,58601.0,58600.0,0.00025597]
[1725301011458,0.247,58604.0,58603.0,0.085315]
[1725301011659,0.2,58604.0,58603.0,0.085315]
[1725301011856,0.201,58604.0,58603.0,0.085315]
[1725301012163,0.286314,58604.0,58603.0,0.085315]
[1725301012469,0.288314,58604.0,58603.0,0.085315]
[1725301012766,0.289314,58604.0,58603.0,0.085315]
[1725301012959,0.290314,58604.0,58603.0,0.085315]
[1725301016773,0.290314,58604.0,58603.0,0.13612988]
[1725301018263,0.290314,58604.0,58603.0,0.085315]
[1725301018467,0.290314,58604.0,58603.0,0.13612988]
[1725301018768,0.375628,58604.0,58603.0,0.05081488]
[1725301019356,0.085318,58601.0,58600.0,0.08557497]
[1725301021670,0.085318,58601.0,58600.0,0.00025597]
[1725301023673,0.08893738,58601.0,58600.0,0.00025597]
[1725301024479,0.25957338,58601.0,58600.0,0.00025597]
[1725301024775,0.085334,58590.0,58589.0,0.186535]
[1725301024974,0.285734,58590.0,58589.0,0.182535]
[1725301025976,0.286734,58590.0,58589.0,0.182535]
[1725301026373,0.287734,58590.0,58589.0,0.26728382]
[1725301026675,0.287734,58590.0,58589.0,0.17008382]
[1725301027264,0.085335,58589.0,58588.0,0.08832155]
[1725301027465,0.0004,58589.0,58586.0,0.44554882]
[1725301027670,0.0004,58587.0,58586.0,0.44554882]
[1725301027872,0.955338,58587.0,58586.0,0.44554882]
[1725301028067,0.955338,58587.0,58586.0,0.3608]
[1725301028466,0.085341,58585.0,58584.0,0.17034679]
[1725301028671,0.285741,58585.0,58584.0,0.08916819]
[1725301029881,0.287741,58585.0,58584.0,0.08916819]
[1725301030271,0.287741,58585.0,58584.0,0.1570245]
[1725301030475,0.287741,58585.0,58584.0,0.08916819]
[1725301031783,0.287741,58585.0,58584.0,0.14003452]
[1725301032174,0.286741,58585.0,58584.0,0.1364643]
[1725301032377,0.287741,58585.0,58584.0,0.08559797]
[1725301033789,0.287741,58585.0,58584.0,0.00025597]
[1725301033978,0.458423,58585.0,58584.0,0.00025597]
[1725301034174,0.505023,58585.0,58584.0,0.00025597]
[1725301035384,0.504023,58585.0,58584.0,0.00025597]
[1725301035579,0.507023,58585.0,58584.0,0.00025597]
[1725301035786,0.506023,58585.0,58584.0,0.00025597]
[1725301035977,0.508023,58585.0,58584.0,0.00025597]
[1725301037187,0.085354,58576.0,58575.0,0.004]
[1725301037396,0.085363,58570.0,58569.0,0.05086633]
[1725301037686,0.085368,58567.0,58561.0,0.07185631]
[1725301037896,0.2,58562.0,58560.0,0.05081083]
[1725301038073,0.0004,58561.0,58558.0,0.41161083]
[1725301038276,0.0004,58561.0,58560.0,0.170755]
[1725301038478,0.004,58572.0,58562.0,0.085375]
[1725301038678,0.2,58583.0,58571.0,0.3612]
[1725301038679,0.004,58577.0,58571.0,0.3612]
[1725301038879,0.285349,58580.0,58575.0,0.085756]
[1725301039203,0.3648,58585.0,58572.0,0.491559]
[1725301039204,0.2004,58576.0,58572.0,0.491559]
[1725301039399,0.2004,58576.0,58572.0,0.4062]
[1725301039594,0.2,58579.0,58577.0,0.085353]
[1725301039792,0.2,58579.0,58572.0,0.4062]
[1725301039793,0.2,58583.0,58582.0,0.085346]
[1725301039996,0.2,58583.0,58582.0,0.085746]
[1725301040192,0.2,58583.0,58582.0,0.085346]
[1725301042213,0.01,58583.0,58582.0,0.086346]
[1725301042398,0.01,58583.0,58582.0,0.447146]
[1725301042800,0.006,58583.0,58582.0,0.446146]
[1725301043104,0.014,58583.0,58582.0,0.447146]
[1725301043603,0.008,58583.0,58582.0,0.447146]
[1725301043908,0.016,58583.0,58582.0,0.447146]
[1725301044613,0.008,58583.0,58582.0,0.446146]
[1725301044798,0.008,58583.0,58582.0,0.447146]
[1725301044799,0.019,58583.0,58582.0,0.447146]
[1725301045505,0.019,58583.0,58582.0,0.3618]
[1725301045913,0.017,58583.0,58582.0,0.3618]
[1725301046506,0.017,58583.0,58582.0,0.447146]
[1725301046811,0.017,58583.0,58582.0,0.3618]
[1725301047319,0.102344,58583.0,58582.0,0.3618]
[1725301047501,0.102344,58583.0,58582.0,0.001]
[1725301050011,0.08535,58579.0,58578.0,0.0004]
[1725301050207,0.28535,58579.0,58578.0,0.0004]
[1725301050510,0.28575,58579.0,58578.0,0.0004]
[1725301051607,0.29075,58579.0,58578.0,0.0004]
[1725301051817,0.29375,58579.0,58578.0,0.0004]
[1725301052007,0.89122,58579.0,58578.0,0.0004]
[1725301052211,0.3791,58579.0,58578.0,0.0004]
[1725301052516,1.48822,58579.0,58578.0,0.0004]
[1725301052705,2.37722,58579.0,58578.0,0.0014]
[1725301054414,1.77822,58579.0,58578.0,0.0014]
[1725301054612,2.37822,58579.0,58578.0,0.0014]
[1725301054819,2.37822,58579.0,58571.0,0.0004]
[1725301054820,0.08536,58572.0,58571.0,0.0004]
[1725301055112,0.28576,58572.0,58571.0,0.0004]
[1725301055707,1.39796,58572.0,58571.0,0.0004]
[1725301055914,1.39796,58572.0,58560.0,0.004]
[1725301055915,0.085365,58569.0,58560.0,0.004]
[1725301056111,1.28237,58569.0,58559.0,0.085379]
[1725301056613,0.68237,58569.0,58559.0,0.085379]
[1725301056808,1.28237,58569.0,58558.0,0.3608]
[1725301057013,0.085379,58559.0,58558.0,0.3608]
[1725301057218,0.285779,58559.0,58558.0,0.3608]
[1725301057717,0.284779,58559.0,58558.0,0.3608]
[1725301058217,0.284779,58559.0,58558.0,0.3618]
[1725301060020,0.2004,58559.0,58558.0,0.447181]
[1725301062223,0.285779,58559.0,58558.0,0.447181]
[1725301062723,0.285779,58559.0,58558.0,0.3618]
[1725301063915,0.085386,58554.0,58553.0,0.00017074]
[1725301064239,0.446186,58554.0,58553.0,0.00017074]
[1725301064414,0.446586,58554.0,58553.0,0.00017074]
[1725301064623,1.2312,58554.0,58553.0,0.08555874]
[1725301064824,0.3612,58554.0,58553.0,0.08555874]
[1725301065127,0.3622,58554.0,58553.0,0.08555874]
[1725301065514,0.3622,58554.0,58553.0,0.08755874]
[1725301066021,0.447586,58554.0,58553.0,0.08755874]
[1725301067024,0.446586,58554.0,58553.0,0.08755874]
[1725301067831,0.0004,58554.0,58553.0,0.08755874]
[1725301069218,0.0004,58554.0,58553.0,0.08751874]
[1725301069823,0.0004,58554.0,58553.0,0.17290674]
[1725301070027,0.00025597,58559.0,58558.0,0.256143]
[1725301070330,0.00025597,58559.0,58558.0,0.817343]
[1725301070522,0.00025597,58559.0,58558.0,1.929663]
[1725301070918,0.00025597,58559.0,58558.0,1.844282]
[1725301071221,0.00225597,58559.0,58558.0,1.044282]
[1725301071530,0.00225597,58559.0,58558.0,0.531962]
[1725301071720,0.00625597,58559.0,58558.0,0.531962]
[1725301072117,0.00225597,58559.0,58558.0,1.044282]
[1725301072319,0.00225597,58559.0,58558.0,1.047282]
[1725301073025,0.00225597,58559.0,58558.0,0.58571286]
[1725301073225,0.00125597,58559.0,58558.0,0.58571286]
[1725301074037,0.00025597,58559.0,58558.0,0.58571286]
[1725301074232,0.2,58567.0,58566.0,0.085369]
[1725301074425,0.3608,58571.0,58566.0,0.0004]
[1725301074624,0.3608,58571.0,58570.0,0.0004]
[1725301074837,0.3608,58571.0,58566.0,0.0004]
[1725301075035,0.0004,58567.0,58566.0,0.085769]
[1725301075823,0.0004,58567.0,58566.0,0.086769]
[1725301077328,0.0054,58567.0,58566.0,0.085769]
[1725301077838,0.0024,58567.0,58566.0,0.085769]
[1725301078039,0.0084,58567.0,58566.0,0.086769]
[1725301079236,0.093768,58567.0,58566.0,0.0014]
[1725301079437,0.143268,58567.0,58566.0,0.0014]
[1725301079642,0.228636,58567.0,58566.0,0.0014]
[1725301079842,1.098636,58567.0,58566.0,0.0014]
[1725301080237,0.085379,58559.0,58558.0,0.3608]
[1725301080452,0.085779,58559.0,58558.0,0.3608]
[1725301081353,0.133679,58559.0,58558.0,0.446181]
[1725301081657,0.133679,58559.0,58558.0,0.450181]
[1725301081855,0.0004,58559.0,58558.0,0.450181]
[1725301082456,0.0004,58559.0,58558.0,1.647882]
[1725301082457,0.0014,58559.0,58558.0,1.647882]
[1725301082855,0.0014,58559.0,58558.0,1.047882]
[1725301083054,0.0014,58559.0,58558.0,1.647882]
[1725301083246,0.0024,58559.0,58558.0,1.693082]
[1725301084162,0.0054,58559.0,58558.0,1.689082]
[1725301084366,0.0054,58559.0,58558.0,0.446181]
[1725301084755,0.0014,58559.0,58558.0,0.449181]
[1725301084962,0.086779,58559.0,58558.0,0.449181]
[1725301085258,0.086779,58559.0,58558.0,0.003]
[1725301085259,0.447579,58559.0,58558.0,0.003]
[1725301085853,0.446579,58559.0,58558.0,0.003]
[1725301086456,1.644278,58559.0,58558.0,0.003]
[1725301086661,1.046278,58559.0,58558.0,0.003]
[1725301086866,1.646278,58559.0,58558.0,0.003]
[1725301087365,2.003958,58559.0,58558.0,0.003]
[1725301087559,2.516278,58559.0,58558.0,0.003]
[1725301087760,0.085386,58554.0,58553.0,0.00013074]
[1725301088062,0.646586,58554.0,58553.0,0.00013074]
[1725301089360,0.646586,58554.0,58553.0,0.00113074]
[1725301090064,1.516586,58554.0,58553.0,0.00113074]
[1725301092165,1.601972,58554.0,58553.0,0.00113074]
[1725301096062,1.516586,58554.0,58553.0,0.00113074]
[1725301097475,1.601972,58554.0,58553.0,0.00113074]
[1725301098671,1.241172,58554.0,58553.0,0.00113074]
[1725301098974,1.601972,58554.0,58553.0,0.00113074]
[1725301101771,1.241172,58554.0,58553.0,0.00113074]
[1725301101965,1.601972,58554.0,58553.0,0.00113074]
[1725301108581,1.516586,58554.0,58553.0,0.00113074]
[1725301108774,0.3612,58554.0,58553.0,0.08651874]
[1725301114885,0.0004,58554.0,58553.0,0.08651874]
[1725301122492,0.285786,58554.0,58553.0,0.00113074]
[1725301123884,0.285786,58554.0,58553.0,0.08651874]
[1725301126081,0.205786,58554.0,58553.0,0.08651874]
[1725301129795,0.205786,58554.0,58553.0,0.00113074]
[1725301130487,0.205786,58554.0,58550.0,0.0035269]
[1725301130488,1.23276,58554.0,58550.0,0.0035269]
[1725301130686,0.4808,58551.0,58542.0,0.004]